Cogmind - Beta 14 @@@ ROGUE MODE // 2025.03.11 @ 15:22:06 Player: opdo Result: Destroyed by D-53 Grenadier with Mini Grenade Launcher Performance ------------- Evolutions (0) 0 Regions Visited (2) 400 Robots Destroyed (13) 65 Value Destroyed (184) 184 Prototype IDs (3) 60 Alien Tech Used (0) 0 Bonus (42) 42 TOTAL SCORE: 751 Bonus ------- Follower Combat Kills 42 Cogmind --------- Core Integrity 0/250 Matter 300/300 Energy 240/240 System Corruption 1% Temperature Cool (0) Movement Walking (190) Ox1 Location -10/Mines Parts ------- > --- POWER (1) -------- Nuclear Core > --- PROPULSION (2) --- Aluminum Leg Aluminum Leg > --- UTILITY (2) ------ Medium Storage Unit Targeting Computer > --- WEAPON (2) ------- Shotgun Shotgun > --- INVENTORY (10) --- Ion Engine Light Deuterium Engine Light Treads Light Treads Aluminum Leg Aluminum Leg Compact Wheel High-capacity Storage Unit Shotgun Grenade Launcher Peak State ------------ > --- POWER ------------ Nuclear Core > --- PROPULSION ------- Aluminum Leg Carbon-fiber Leg > --- UTILITY ---------- Medium Storage Unit Splice Drone Bay > --- WEAPON ----------- Shotgun Shotgun > --- INVENTORY -------- Light Deuterium Engine Light Treads Light Treads Aluminum Leg Aluminum Leg High-capacity Storage Unit Targeting Computer Shotgun Shotgun Grenade Launcher [Rating: 20] Favorites ----------- Power Light Ion Engine Engine Light Ion Engine Power Core Nuclear Core Propulsion Aluminum Leg Leg Aluminum Leg Utility Medium Storage Unit Device Seismic Detector Storage Medium Storage Unit Processor Targeting Computer Weapon Shotgun Ballistic Gun Shotgun Launcher Grenade Launcher Impact Weapon Hammer Build | -11 -10 -10 ------- Run | Yrd Mat Min Slots Evolved . | . . . Power . | . . . Propulsion . | . . . Utility . | . . . Weapon . | . . . Parts Attached 26 | 7 7 12 Power 3 | 1 1 1 Engine 2 | 1 1 . Core 1 | . . 1 Reactor . | . . . Propulsion 9 | 2 1 6 Treads . | . . . Leg 9 | 2 1 6 Wheel . | . . . Hover . | . . . Flight . | . . . Utility 5 | 2 1 2 Device 2 | 1 . 1 Storage 2 | 1 1 . Processor 1 | . . 1 Hackware . | . . . Protection . | . . . Artifact . | . . . Weapon 9 | 2 4 3 Energy Gun . | . . . Energy Cannon . | . . . Ballistic Gun 7 | 2 3 2 Ballistic Cannon . | . . . Launcher 1 | . . 1 Special Weapon . | . . . Impact Weapon 1 | . 1 . Slashing Weapon . | . . . Piercing Weapon . | . . . Special Melee Weapon . | . . . Unidentified Prototypes 1 | . . 1 Parts Lost 4 | . . 4 Power . | . . . Propulsion 2 | . . 2 Utility 1 | . . 1 Weapon 1 | . . 1 Highest Loss Streak 4 | . . 4 To Critical Strikes . | . . . Average Slot Usage (%) 98 | . 100 97 Engine 10 | . 14 6 Core 4 | . . 7 Leg 27 | . 28 26 Device 12 | . 14 11 Storage 14 | . 14 14 Processor 1 | . . 2 Ballistic Gun 27 | . 27 27 Peak Build Rating 20 | 7 10 20 Average Rating 12 | 5 9 15 On Entrance 5 | . 7 10 Naked Turns . | . . . Heaviest Build 31 | 13 22 31 Greatest Support 25 | 20 20 25 Greatest Overweight (x) 3 | 3 1 2 Average Overweight (x) . | . . 1 Largest Inventory Capacity 10 | 8 10 10 Average Capacity 9 | 7 9 10 Most Carried 10 | 3 10 10 Average Carried 8 | 2 8 9 Final Capacity 10 | 8 10 10 Final Carried 10 | 3 10 10 Class Distribution -------------------- 100% | Mutant Dominant Class ---------------- Mutant | -10/Materials Mutant | -10/Mines Resources | -11 -10 -10 ----------- Run | Yrd Mat Min Matter Collected 726 | 315 82 329 Remotely . | . . . Salvage Created 418 | 126 122 170 Parts 19 | 7 5 7 Haulers Intercepted . | . . . Recyclers Shooed 2 | . . 2 Parts Field Recycled . | . . . Retrieved Matter . | . . . Parts Self-Destructed . | . . . Prevented . | . . . Kills | -11 -10 -10 ------- Run | Yrd Mat Min Combat Hostiles Destroyed 9 | . 6 3 Guns 8 | . 6 2 AOE 1 | . . 1 Classes Destroyed 5 | 2 2 1 Tunneler 2 | 2 . . Recycler 3 | 1 . 2 Swarmer 5 | . 3 2 Grunt 3 | . 3 . Assembled 1 | . . 1 Best Kill Streak 3 | 3 3 2 Combat Bots Only 3 | . 3 2 Max Kills in Single Turn 1 | 1 1 1 Gunslinging . | . . . Exploded 1 | . . 1 Melee . | . . . Uniques/NPCs Destroyed . | . . . Combat | -11 -10 -10 -------- Run | Yrd Mat Min Hostile Shots Fired 102 | . 15 87 Missed 31 | . 8 23 Damage Taken 1219 | . 98 1121 Core 253 | . 34 219 Absorbed by Shields . | . . . Core Remaining (%) 100 | 100 . . Volleys Fired 33 | 9 11 13 Largest 2 | 2 2 2 Hottest 53 | 40 46 53 Shots Fired 66 | 18 22 26 Gun 64 | 18 22 24 Cannon . | . . . Launcher 2 | . . 2 Special . | . . . Kinetic 64 | 18 22 24 Thermal . | . . . Explosive 2 | . . 2 Electromagnetic . | . . . Robot Hit Streak 12 | 7 12 4 Robot Miss Streak 3 | 2 3 3 Penetration Max . | . . . Secondary Targets 2 | . . 2 Max Gunslinging Chain 1 | . . 1 Shots Hit Robots 45 | 12 16 17 Core Hits 24 | 4 10 10 Critical Kills . | . . . Critical Parts Destroyed . | . . . Critical Strikes . | . . . Melee Attacks 4 | . 4 . Impact 4 | . 4 . Slashing . | . . . Piercing . | . . . Sneak Attacks . | . . . Combat Hostiles . | . . . Follow-up Attacks . | . . . Damage Inflicted 694 | 155 267 272 Guns 623 | 155 254 214 Cannons . | . . . Explosions 58 | . . 58 Melee . | . . . Ramming 13 | . 13 . Kinetic 623 | 155 254 214 Thermal . | . . . Explosive 58 | . . 58 Electromagnetic . | . . . Impact . | . . . Slashing . | . . . Piercing . | . . . Highest Corruption 1 | . 1 1 Average Corruption 1 | . 1 1 Corruption Purged . | . . . Corruption Blocked . | . . . Effects 10 | . 5 5 Message Errors 1 | . 1 . Matter Fused 5 | . 1 4 Energy Discharges 1 | . 1 . Data Loss (minor) 3 | . 2 1 Overload Shots . | . . . Overflow Damage . | . . . Projectiles . | . . . Explosions . | . . . Melee . | . . . Knockbacks . | . . . Impact . | . . . Kinetic . | . . . Secondary . | . . . Self-Inflicted Damage 55 | . . 55 Shots 2 | . . 2 Rammed . | . . . Targets Rammed 4 | . 4 . Kicked 4 | . 4 . Crushed . | . . . Highest Temperature 39 | . 1 39 Average Temperature 12 | . 1 14 Received Heat Transfer 431 | . 30 401 Siege Activations . | . . . Robots Corrupted . | . . . Combat Hostiles . | . . . Parts Fried . | . . . Impact Corruptions . | . . . Robots Melted . | . . . Combat Hostiles . | . . . Parts Melted . | . . . Heat Transferred . | . . . Parts Sabotaged . | . . . Parts Stolen . | . . . Parts Stripped . | . . . Power Chain Reactions . | . . . Alert | -11 -10 -10 ------- Run | Yrd Mat Min Peak Influence 144 | 15 144 109 Initial 55 | . 9 55 Average 51 | 4 64 45 Maximum Alert Level . | . . . Low Security (%) 100 | 100 100 100 Level 1 . | . . . Level 2 . | . . . Level 3 . | . . . Level 4 . | . . . Level 5 . | . . . High Security . | . . . Max Security . | . . . Squads Dispatched 2 | . 1 1 Investigation 2 | . 1 1 Extermination . | . . . Reinforcement . | . . . Assault . | . . . Garrison . | . . . Intercept . | . . . Searches Triggered . | . . . Construction Impeded . | . . . Haulers Reinforced . | . . . Active Scanning Responses . | . . . Cargo Convoy Interrupts . | . . . Stealth | -11 -10 -10 --------- Run | Yrd Mat Min Distress Signals 1 | . 1 . Communications Jammed . | . . . Distress Signals . | . . . Times Spotted 36 | . 9 27 Peak Tracking Total 21 | . 4 21 Tactical Retreats 2 | . . 2 Traps | -11 -10 -10 ------- Run | Yrd Mat Min Traps Triggered 2 | . 2 . Indirectly . | . . . Trap Hack Attempts . | . . . Triggered . | . . . Disarmed . | . . . Reprogrammed . | . . . Reused . | . . . Traps Extracted . | . . . Installed . | . . . Triggered . | . . . Machines | -11 -10 -10 ---------- Run | Yrd Mat Min Machines Disabled . | . . . Max in Single Turn . | . . . Machines Repaired . | . . . Machines Dismantled . | . . . Machines Sabotaged . | . . . Overloaded Fab Kills . | . . . Hacking | -11 -10 -10 --------- Run | Yrd Mat Min Machines Accessed 8 | . 6 2 Terminals 5 | . 5 . Fabricators . | . . . Repair Stations . | . . . Recycling Units 1 | . 1 . Scanalyzers . | . . . Garrison Access . | . . . Total Hacks 22 | . 20 2 Successful 17 | . 15 2 Failed 5 | . 5 . Catastrophic . | . . . Database Lockouts . | . . . Manual 16 | . 16 . Terminals 19 | . 19 . Fabricators . | . . . Repair Stations . | . . . Recycling Units 1 | . 1 . Scanalyzers . | . . . Garrison Access . | . . . Terminal Hacks 7 | . 5 2 Robot Analysis 2 | . 2 . Prototype ID Bank 1 | . 1 . Open Door 2 | . . 2 Terminal Index 1 | . 1 . Zone Layout 1 | . 1 . Fabricator Hacks . | . . . Repair Station Hacks . | . . . Recycling Unit Hacks 1 | . 1 . Report Inventory 1 | . 1 . Scanalyzer . | . . . Garrison Access Hacks . | . . . Unauthorized Hacks 9 | . 9 . Terminals 9 | . 9 . Track 1 | . 1 . Botnet 2 | . 2 . Operators 1 | . 1 . Skim 5 | . 5 . Fabricators . | . . . Repair Stations . | . . . Recycling Units . | . . . Scanalyzers . | . . . Garrison Access . | . . . Data Cores Recovered . | . . . Used . | . . . Hacking Detections 5 | . 5 . Full Trace Events . | . . . Feedback Events . | . . . Feedback Blocked . | . . . Robot Schematics Acquired . | . . . Robots Built . | . . . Authchips . | . . . Time . | . . . Total Robot Build Rating . | . . . Part Schematics Acquired . | . . . Parts Built . | . . . Authchips . | . . . Time . | . . . Total Part Build Rating . | . . . Parts Repaired . | . . . Time . | . . . Parts Recycled . | . . . Recycled Matter . | . . . Retrieved Matter . | . . . Retrieved Components . | . . . Parts Scanalyzed . | . . . Part Schematics Acquired . | . . . Parts Damaged . | . . . Bothacking | -11 -10 -10 ------------ Run | Yrd Mat Min Used RIF Installer . | . . . Robots Hacked . | . . . Non-combat . | . . . Combat . | . . . Robot Hacks Applied . | . . . Relay Couplers Released . | . . . Fabnet Peak Effective % . | . . . Robots Rewired . | . . . Allies Hacked . | . . . Hacks Repelled . | . . . Allies | -11 -10 -10 -------- Run | Yrd Mat Min Total Allies 2 | . . 2 Largest Group 2 | . . 2 Highest-Rated Group 39 | . . 39 Highest-Rated Ally 31 | . . 31 Total Orders 2 | . . 2 EXPLORE 1 | . . 1 RETURN 1 | . . 1 Ally Attacks 16 | . . 16 Total Damage 201 | . . 201 Kills 5 | . . 5 Allies Corrupted . | . . . Allies Melted . | . . . Intel | -11 -10 -10 ------- Run | Yrd Mat Min Robot Analysis Total 2 | . 2 . Derelict Logs Recovered 1 | . . 1 Drone Launches 6 | . . 6 Drone Recoveries 5 | . . 5 Exploration | -11 -10 -10 ------------- Run | Yrd Mat Min Turns Passed 1564 | 93 718 753 Spaces Moved 873 | 46 466 361 Core 11 | 11 . . Treads . | . . . Legs 862 | 35 466 361 Wheels . | . . . Hover . | . . . Flight . | . . . Fastest Speed 50 | 50 120 120 Average Speed 155 | 116 131 191 Slowest Speed 260 | 200 190 260 Overloaded Moves . | . . . Propulsion Burnouts . | . . . Robots Hopped . | . . . Cave-ins Triggered . | . . . Exploration Rate (%) 48 | 3 65 77 Regions Visited 2 Branch Regions 1 Pre-discovered Areas . | . . . Known Exits Taken 1 | . 1 . Unknown Exits Taken 1 | 1 . . Scrap Searched 1 | . . 1 Spaces Dug 11 | . 3 8 Terrain Destroyed 22 | . 3 19 Melee 3 | . 3 . Projectile . | . . . AOE 19 | . . 19 Terrain Rammed . | . . . Walls Destroyed . | . . . Machines Disabled . | . . . Actions | -11 -10 -10 --------- Run | Yrd Mat Min Total 1008 | 64 547 397 Wait 30 | . 30 . Move 871 | 45 465 361 Hop . | . . . Pick Up 21 | 3 14 4 Fast Attach 9 | 7 . 2 Attach 4 | . 1 3 Detach . | . . . Swap 13 | . 6 7 Drop 19 | . 12 7 Fire 33 | 9 11 13 Melee 4 | . 4 . Ram . | . . . Kick 4 | . 4 . Crush . | . . . Escape Stasis . | . . . Rewire . | . . . Trap . | . . . Miscellaneous . | . . . Route ------- -11/Scrapyard -10/Materials (discovered 6 exits: *Mat x3 / *Min x2 / Sub) -10/Mines (discovered 3 exits: *Mat x2 / Exi) History --------- Turn | Location | Event 21 | -11/Scrapyard | Discovered new exit (range 15) 94 | -11/Scrapyard | Entered Materials 259 | -10/Materials | Discovered new exit (range 11) 306 | -10/Materials | Build established: Mutant 453 | -10/Materials | Discovered new exit (range 15) 546 | -10/Materials | Discovered new exit (range 13) 632 | -10/Materials | Discovered new exit (range 14) 681 | -10/Materials | Loaded intel: 1 repair station location 694 | -10/Materials | Derelicts attacked the area 733 | -10/Materials | Learned 4 Subcaves zone layouts 774 | -10/Materials | Identified exit to Subcaves 774 | -10/Materials | Identified exit to Mines 805 | -10/Materials | Learned location of 2 exits from Mines 812 | -10/Materials | Entered Mines 813 | -10/Mines | Identified exit to Exiles 813 | -10/Mines | Identified exit to Materials 903 | -10/Mines | Found the Drone Emporium 912 | -10/Mines | Found Prototype Device 912 | -10/Mines | Identified Splice Drone Bay 1136 | -10/Mines | Met a Derelict shopkeep closing up shop 1353 | -10/Mines | Learned location of 1 exit from Materials 1364 | -10/Mines | Discovered exit to Materials (range 28) 1369 | -10/Mines | Assembled infested the area 1374 | -10/Mines | Assisted by a Guerilla fighting off Assembled 1416 | -10/Mines | Lost 3 allies 1425 | -10/Mines | Core integrity fell below 50% 1445 | -10/Mines | Core integrity fell below 20% 1473 | -10/Mines | Lost 4 parts (2n1u1w) 1565 | -10/Mines | Destroyed by D-53 Grenadier with Mini Grenade Launcher Last Messages --------------- 01429_ The unstable cave ceiling collapses. 01430_ Shotgun destroyed. 01431_ as-13694 destroyed. 01431_ as-23120 destroyed. 01431_ as-15025 destroyed. 01442_ Carbon-fiber Leg destroyed. 01442_ K-01 Serf destroyed. 01446_ D-53 Grenadier destroyed. 01451_ The unstable cave ceiling collapses. 01472_ Acquired 49 matter. 01482_ Acquired 23 matter. 01517_ Acquired 8 matter. 01522_ R-06 Scavenger destroyed. 01523_ Acquired 8 matter. 01525_ The unstable cave ceiling collapses. 01543_ Acquired Aluminum Leg. 01550_ Acquired Ion Engine. 01551_ Acquired 20 matter. 01555_ Acquired Com. Wheel. 01559_ The unstable cave ceiling collapses. Map ----- +----------------------------------------------------+ | ???????????????????????????????????????????# | | ???????????????????????????????????????????# | | ?????????????????????????????????????####### | | ????????????????????????????????????##""## | | ????????????????????????????????????#"!] # | | ###?????????????????????????????????#"! | | #?????????????????????????????????#" * | | # #??????######?????????????????????#"*] #X | | # #?????##""""##????????????????????##""## | | # #?????#" !"#?????????????????????####### | | # #?????#" "#?###???????????????????????# | | # #????### #### ##??????????????????????# | | # #???## ## !#### ##???????????####??????### ### | | # ##### X ## ##?????????## ##???##### #?? | | %# #???????### #???# #?? | | ####???## ##### #?? | | ##### #??## # ##?? | | #???## #?## % #??? | | #????## ## ## ### ## #### #?? | | ###?????# #### ## !! #### #?# #?? | | ????????## #??# ## % ##??# #?? | | ?????????# ##??# # ### ##???## ##?? | | ?????????####???# ## #?????### ###??? | | ?????????### ##### #% #????????# ##????? | | ???????### # # ##?????????###?????? | | ??????## # # ## [ @ #??????????????????? | | ??????# * ## ##??????????????????? | | ??????## % = d ## #???????????????????? | | ??????## ###### ## #??????